bitfinex-derivatives/quotes_SOLF0:USTF0_20250820
["timestamp","ask_amount","ask_price","bid_price","bid_amount"]
[1755703854272,2.09,184.46,184.37,3.09]
[1755703854464,2.09,184.44,184.29,3.09]
[1755703856264,5.4229,184.4,184.29,3.09]
[1755703856661,5.4229,184.4,184.34,5.4242]
[1755703856862,5.4229,184.4,184.32,2.96]
[1755703857172,5.4229,184.4,184.34,5.4242]
[1755703857562,2.09,184.41,184.34,5.4242]
[1755703857962,2.09,184.41,184.32,2.96]
[1755703858471,2.09,184.41,184.35,5.4239]
[1755703858672,2.09,184.41,184.32,2.96]
[1755703858869,2.09,184.41,184.37,5.4234]
[1755703859167,2.09,184.4,184.32,2.96]
[1755703859367,2.09,184.4,184.35,5.424]
[1755703859563,2.09,184.4,184.32,2.96]
[1755703860164,2.09,184.4,184.28,0.9439208]
[1755703860465,142.86,184.45,184.28,0.9439208]
[1755703860466,2.09,184.38,184.28,5.4259]
[1755703860772,2.09,184.38,184.26,2.96]
[1755703860972,2.09,184.38,184.27,5.4265]
[1755703861167,2.09,184.38,184.23,2.96]
[1755703861368,2.09,184.36,184.23,2.96]
[1755703861571,142.82,184.35,184.23,2.96]
[1755703861772,2.09,184.34,184.23,2.96]
[1755703862168,2.09,184.34,184.27,5.4263]
[1755703862369,2.09,184.34,184.23,2.96]
[1755703862568,2.09,184.34,184.22,0.94436906]
[1755703862770,7.88555405,184.31,184.22,0.94436906]
[1755703863075,2.09,184.34,184.17,2.96]
[1755703863277,2.09,184.31,184.17,2.96]
[1755703863672,2.09,184.31,184.19,5.4286]
[1755703863984,2.09,184.31,184.17,2.96]
[1755703864363,145.45,184.31,184.17,2.96]
[1755703864573,2.09,184.31,184.17,2.96]
[1755703865276,2.09,184.31,184.22,5.4277]
[1755703865576,2.09,184.31,184.17,2.96]
[1755703866171,143.46,184.34,184.17,2.96]
[1755703866571,2.09,184.35,184.17,2.96]
[1755703867072,2.09,184.39,184.17,2.96]
[1755703867575,143.42,184.38,184.27,2.96]
[1755703867769,2.09,184.39,184.27,2.96]
[1755703868076,2.09,184.39,184.32,5.4249]
[1755703868277,2.09,184.39,184.27,2.96]
[1755703868577,2.09,184.36,184.22,2.96]
[1755703869466,508.24,184.4,184.25,2.96]
[1755703869670,508.24,184.4,184.28,4.9957483]
[1755703869879,508.24,184.4,184.29,2.96]
[1755703870176,2.09,184.45,184.29,2.96]
[1755703870471,2.09,184.45,184.3,2.96]
[1755703870678,4.9957483,184.44,184.3,2.96]
[1755703870874,2.09,184.43,184.3,2.96]
[1755703871269,2.09,184.39,184.26,2.96]
[1755703871471,5.4244,184.35,184.26,2.96]
[1755703871671,144.0,184.37,184.26,2.96]
[1755703871875,2.09,184.36,184.26,2.96]
[1755703872878,4.9957483,184.4,184.26,2.96]
[1755703873075,4.9957483,184.4,184.3,2.96]
[1755703873380,0.94402322,184.49,184.3,7.9557483]
[1755703873381,2.09,184.48,184.3,7.9557483]
[1755703873584,2.09,184.48,184.31,2.96]
[1755703873979,18.07352,184.5,184.35,2.96]
[1755703874185,18.07352,184.5,184.39,2.96]
[1755703874688,18.07352,184.5,184.49,2.96]
[1755703874982,18.07352,184.5,184.49,8.38]
[1755703875173,18.07352,184.5,184.38,4.9957483]
[1755703875380,18.07352,184.5,184.39,2.96]
[1755703876375,18.07352,184.5,184.3,154.8307]
[1755703876376,18.07352,184.5,184.41,2.96]
[1755703877078,18.07352,184.5,184.45,5.4209]
[1755703877573,18.07352,184.5,184.45,8.3809]
[1755703877874,5.42,184.49,184.43,5.4215]
[1755703878073,18.07352,184.5,184.4,2.96]
[1755703878276,2.09,184.49,184.37,5.4235]
[1755703878480,2.09,184.49,184.35,2.96]
[1755703878985,2.09,184.49,184.28,2.96]
[1755703879282,5.4215,184.45,184.28,2.96]
[1755703879578,2.09,184.49,184.32,2.96]
[1755703879782,5.4206,184.47,184.32,2.96]
[1755703879982,2.09,184.49,184.32,2.96]
[1755703880982,2.09,184.45,184.32,2.96]
[1755703881577,5.4222,184.42,184.32,2.96]
[1755703881778,2.09,184.45,184.32,2.96]
[1755703881980,5.4216,184.44,184.32,2.96]
[1755703882283,2.09,184.45,184.32,2.96]
[1755703882875,20.16352,184.5,184.33,2.96]
[1755703883273,2.09,184.49,184.33,2.96]
[1755703884177,5.421,184.46,184.4,5.4224]
[1755703884372,2.09,184.49,184.29,2.96]
[1755703884577,2.09,184.49,184.34,2.96]
[1755703885382,18.07352,184.5,184.34,2.96]
[1755703885780,18.07352,184.5,184.48,5.4203]
[1755703885986,18.07352,184.5,184.41,2.82]
[1755703886988,20.16352,184.5,184.41,2.82]
[1755703888184,2.09,184.49,184.41,2.82]
[1755703888585,18.07352,184.5,184.44,5.4213]
[1755703888785,2.09,184.48,184.44,5.4213]
[1755703889186,2.09,184.48,184.41,2.82]
[1755703889584,18.07352,184.5,184.41,2.82]
[1755703890086,2.09,184.49,184.37,2.82]
[1755703890285,5.4205,184.48,184.37,2.82]
[1755703890691,7.5101,184.49,184.37,2.82]
[1755703890984,2.09,184.49,184.37,2.82]
[1755703891388,18.07352,184.5,184.37,2.82]
[1755703892093,2.09,184.49,184.37,2.82]
[1755703892396,2.09,184.48,184.37,2.82]
[1755703892793,7.5105,184.48,184.43,5.4216]
[1755703893092,2.09,184.47,184.37,2.82]
[1755703893592,7.5108,184.47,184.37,2.82]
[1755703893984,2.09,184.47,184.37,2.82]
[1755703894387,18.07352,184.5,184.37,2.82]
[1755703894890,2.09,184.49,184.45,5.421]
[1755703895092,2.09,184.49,184.37,2.82]
[1755703895390,18.07352,184.5,184.37,2.82]
[1755703897492,18.07352,184.5,184.38,10.8465]
[1755703897694,18.07352,184.5,184.49,5.42]
[1755703902601,18.07352,184.5,184.42,2.82]
[1755703903293,18.07352,184.5,184.49,5.42]
[1755703903692,20.16352,184.5,184.49,5.42]
[1755703903896,18.07352,184.5,184.49,5.42]
[1755703904698,2e-05,184.5,184.49,8.24]
[1755703904908,2.09,184.59,184.49,3.36]
[1755703905093,2.09,184.59,184.49,2.82]
[1755703905293,2.09,184.59,184.44,2.82]
[1755703905797,5.418,184.56,184.51,5.4192]
[1755703905998,2.09,184.54,184.51,5.4192]
[1755703906300,2.09,184.54,184.52,5.419]
[1755703906692,2.09,184.58,184.44,2.82]
[1755703907300,2.09,184.56,184.53,5.4187]
[1755703907507,4.98556579,184.6,184.44,2.82]
[1755703907508,2.09,184.59,184.44,2.82]
[1755703907702,5.4187,184.54,184.44,2.82]
[1755703907896,2.09,184.54,184.44,2.82]
[1755703908608,2.09,184.58,184.44,2.82]
[1755703908798,5.4179,184.57,184.52,5.419]
[1755703909000,2.09,184.55,184.44,2.82]
[1755703909393,2.09,184.59,184.44,2.82]
[1755703909899,2.09,184.56,184.44,2.82]
[1755703911800,5.4177,184.57,184.52,5.4189]
[1755703912006,2.09,184.56,184.52,5.4189]
[1755703912212,2.09,184.55,184.47,2.82]
[1755703914002,2.09,184.61,184.54,5.4183]
[1755703914208,2.09,184.58,184.54,5.4183]
[1755703914907,2.09,184.57,184.53,5.4187]
[1755703915302,5.4174,184.58,184.53,5.4187]
[1755703915607,2.09,184.57,184.54,5.4185]
[1755703915908,2.1,184.63,184.5,3.09]
[1755703916301,5.4166,184.61,184.5,3.09]
[1755703916500,2.09,184.6,184.5,3.09]
[1755703917503,2.09,184.6,184.57,5.4176]
[1755703917901,2.09,184.59,184.57,5.4176]
[1755703918102,2.09,184.59,184.55,5.4179]
[1755703918308,4.98556579,184.64,184.55,5.4179]
[1755703918309,2.09,184.63,184.55,5.4179]
[1755703918509,2.09,184.63,184.5,3.09]
[1755703919009,4.98556579,184.64,184.5,3.09]
[1755703919010,2.09,184.6,184.5,3.09]
[1755703919408,2.09,184.64,184.55,3.09]
[1755703919810,5.4165,184.61,184.56,5.4178]
[1755703920108,2.09,184.6,184.5,8.07556579]
[1755703920414,2.09,184.64,184.54,3.09]
[1755703921502,2.09,184.69,184.54,3.09]
[1755703922511,2.09,184.61,184.58,5.4173]
[1755703922899,5.4165,184.61,184.56,5.4179]
[1755703923204,2.09,184.61,184.49,3.09]
[1755703923604,2.09,184.55,184.51,5.4193]
[1755703924110,2.09,184.55,184.52,5.4189]
[1755703924612,2.09,184.55,184.49,3.09]
[1755703925310,2.09,184.58,184.49,3.09]
[1755703925709,2.09,184.57,184.44,3.09]
[1755703926706,5.4186,184.54,184.49,5.4199]
[1755703926908,2.09,184.53,184.49,5.4199]
[1755703927110,7.07556579,184.58,184.49,3.09]
[1755703927307,7.07556579,184.58,184.5,5.4196]
[1755703927503,4.98556579,184.58,184.5,5.4196]
[1755703927708,2.09,184.57,184.45,3.09]
[1755703927903,5.4187,184.54,184.45,3.09]
[1755703928514,5.4188,184.53,184.49,5.4199]
[1755703928816,7.5088,184.53,184.49,5.4199]
[1755703929810,2.09,184.58,184.48,3.09]
[1755703930011,2.09,184.61,184.48,3.09]
[1755703930313,5.4168,184.6,184.48,3.09]
[1755703930508,2.09,184.61,184.49,3.09]
[1755703930708,364.14,184.63,184.51,7.4967758]
[1755703930915,2.09,184.68,184.52,7.4967758]
[1755703931106,2.09,184.68,184.53,3.09]
[1755703931306,2.09,184.6,184.53,3.09]
[1755703931506,2.09,184.6,184.48,3.09]
[1755703932911,2.09,184.58,184.48,3.09]
[1755703933211,5.4185,184.55,184.48,3.09]
[1755703933707,2.09,184.58,184.48,3.09]
[1755703933909,4.98556579,184.63,184.49,3.09]
[1755703934114,5.4168,184.6,184.56,5.4177]
[1755703934408,2.09,184.62,184.49,3.09]
[1755703935207,5.4168,184.6,184.49,3.09]
[1755703935410,2.09,184.62,184.5,3.09]
[1755703935907,5.4167,184.61,184.57,5.4174]
[1755703936112,2.09,184.63,184.5,7.4967758]
[1755703936311,5.4162,184.62,184.58,5.4173]
[1755703936511,7.5062,184.62,184.51,7.4967758]
[1755703936708,2.09,184.66,184.52,3.09]
[1755703937010,5.4157,184.64,184.53,3.09]
[1755703937711,4.98556579,184.67,184.57,3.09]
[1755703937712,5.4154,184.65,184.57,3.09]
[1755703937907,4.98556579,184.67,184.57,3.09]
[1755703938114,2.09,184.66,184.57,3.09]
[1755703938418,7.5059,184.63,184.59,5.417]
[1755703938618,2.09,184.63,184.57,3.09]
[1755703938818,2.09,184.63,184.59,5.4169]
[1755703939015,2.09,184.63,184.52,4.4067758]
[1755703939016,2.09,184.62,184.52,3.09]
[1755703939218,2.09,184.62,184.48,4.4067758]
[1755703939413,2.09,184.59,184.55,5.4181]
[1755703940017,2.09,184.57,184.54,5.4184]
[1755703940211,4.98556579,184.6,184.51,3.09]
[1755703940722,2.09,184.59,184.51,3.09]
[1755703941717,4.98556579,184.6,184.51,3.09]
[1755703942309,7.07556579,184.6,184.51,3.09]
[1755703942516,4.98556579,184.56,184.5,5.4195]
[1755703942722,7.07556579,184.56,184.46,3.09]
[1755703943310,4.98556579,184.56,184.51,5.4193]
[1755703943511,2.09,184.54,184.51,5.4193]
[1755703943923,4.98556579,184.56,184.52,5.4191]
[1755703944125,2.09,184.58,184.46,7.4967758]
[1755703944324,2.09,184.58,184.47,3.09]
[1755703944519,2.09,184.58,184.53,5.4186]
[1755703944715,4.98556579,184.6,184.47,4.4067758]
[1755703944921,2.09,184.61,184.5,3.09]
[1755703945122,2.09,184.63,184.55,3.09]
[1755703945524,364.1,184.64,184.55,3.09]
[1755703945924,142.68,184.65,184.55,3.09]
[1755703946120,142.68,184.65,184.61,5.4163]
[1755703946318,142.68,184.65,184.55,7.4967758]
[1755703946319,142.68,184.65,184.55,3.09]
[1755703946816,2.08,184.64,184.6,5.4167]
[1755703947218,7.06556579,184.68,184.55,3.09]
[1755703948221,7.06556579,184.68,184.6,5.4168]
[1755703948420,7.06556579,184.68,184.55,3.09]
[1755703948421,2.08,184.67,184.55,3.09]
[1755703949226,2.08,184.67,184.63,5.4158]
[1755703949727,2.08,184.66,184.63,5.4158]
[1755703950231,2.33504,184.7,184.63,5.4158]
[1755703950427,2.33504,184.7,184.64,5.4155]
[1755703950627,2.33504,184.7,184.59,2.9]
[1755703951833,2.08,184.66,184.54,2.9]
[1755703953031,2.08,184.66,184.56,5.4177]
[1755703953225,2.08,184.66,184.54,2.9]
[1755703953627,2.08,184.66,184.56,5.4177]
[1755703954434,2.08,184.66,184.54,2.9]
[1755703954827,2.08,184.66,184.53,2.9]
[1755703955126,2.33504,184.7,184.54,2.9]
[1755703955327,2.08,184.66,184.55,2.9]
[1755703956227,2.08,184.66,184.57,5.4174]
[1755703956637,2.08,184.66,184.55,2.9]
[1755703957027,0.25504,184.7,184.55,2.9]
[1755703957028,2.08,184.62,184.55,2.9]
[1755703957328,2.08,184.62,184.55,8.3182]
[1755703957831,2.08,184.62,184.55,2.9]
[1755703958028,2.08,184.62,184.51,4.4067758]
[1755703958335,2.08,184.58,184.5,2.9]
[1755703959332,2.08,184.58,184.5,8.3195]
[1755703959531,2.08,184.58,184.5,2.9]
[1755703959932,2.08,184.58,184.52,5.4191]
[1755703960131,4.98556579,184.59,184.5,2.9]
[1755703960332,6.04129923,184.67,184.5,2.9]
[1755703960333,4.98556579,184.63,184.5,2.9]
[1755703960635,2.08,184.66,184.52,2.9]
[1755703961036,2.08,184.66,184.53,2.9]
[1755703961628,2.08,184.66,184.59,5.417]
[1755703962529,2.08,184.66,184.6,5.4167]
[1755703962725,2.08,184.66,184.56,2.9]
[1755703963037,2.08,184.66,184.59,5.4169]
[1755703963226,2.08,184.66,184.56,2.9]
[1755703963632,2.08,184.66,184.61,5.4164]
[1755703963828,2.08,184.66,184.61,2.9]
[1755703964227,142.79504,184.7,184.61,2.9]
[1755703964228,149.86060579,184.7,184.61,2.9]
[1755703964841,149.86060579,184.7,184.57,2.9]
[1755703965742,149.60556579,184.7,184.57,2.9]
[1755703966437,149.60556579,184.7,184.6,5.4167]
[1755703966638,2.08,184.69,184.57,2.9]
[1755703966843,2.08,184.65,184.57,2.9]
[1755703967734,142.54,184.7,184.52,2.9]
[1755703967735,2.08,184.61,184.52,2.9]
[1755703968730,4.98556579,184.58,184.48,2.9]
[1755703968931,7.06556579,184.58,184.48,2.9]
[1755703969131,7.06556579,184.58,184.5,5.4195]
[1755703969633,7.06556579,184.58,184.51,5.4194]
[1755703969833,7.06556579,184.58,184.48,2.9]
[1755703970836,7.06556579,184.58,184.49,5.4199]
[1755703971243,7.06556579,184.58,184.48,2.9]
[1755703971843,7.06556579,184.62,184.48,2.9]
[1755703972445,7.06556579,184.62,184.54,5.4185]
[1755703972649,7.06556579,184.62,184.44,5.8712062]
[1755703972650,2.08,184.61,184.51,2.9]
[1755703972841,2.08,184.61,184.47,2.9]
[1755703972842,4.98556579,184.58,184.47,2.9]
[1755703973143,7.06556579,184.58,184.47,2.9]
[1755703973647,7.06556579,184.58,184.49,5.4197]
[1755703974446,7.06556579,184.58,184.5,5.4197]
[1755703974648,7.06556579,184.58,184.47,2.9]
[1755703975447,7.06556579,184.58,184.49,5.4199]
[1755703976351,7.06556579,184.58,184.47,2.9]
[1755703976950,4.98556579,184.58,184.47,2.9]
[1755703977150,2.09,184.57,184.47,2.9]
[1755703977354,2.09,184.57,184.46,5.4207]
[1755703978351,4.98556579,184.54,184.43,3.04]
[1755703978555,2.09,184.53,184.43,3.04]
[1755703978855,144.53,184.53,184.43,3.04]
[1755703979054,4.98556579,184.51,184.43,8.4616]
[1755703979249,2.09,184.53,184.43,3.04]
[1755703979450,2.09,184.53,184.46,5.4207]
[1755703979855,2.09,184.53,184.43,3.04]
[1755703980458,2.09,184.57,184.47,3.04]
[1755703981058,2.09,184.57,184.48,5.4201]
[1755703981359,2.09,184.57,184.47,3.04]
[1755703981654,4.98556579,184.54,184.43,3.04]
[1755703981860,2.09,184.53,184.43,3.04]
[1755703982956,2.09,184.53,184.45,5.4211]
[1755703983662,2.09,184.53,184.43,3.04]
[1755703983960,7.07556579,184.54,184.43,3.04]
[1755703984455,2.09,184.54,184.43,3.04]
[1755703984656,4.98556579,184.57,184.43,3.04]
[1755703984855,4.98556579,184.57,184.48,8.46]
[1755703985056,4.98556579,184.57,184.48,3.04]
[1755703985453,4.98556579,184.61,184.51,3.04]
[1755703986258,4.98556579,184.61,184.54,5.4183]
[1755703986559,4.98556579,184.61,184.51,3.04]
[1755703986560,2.09,184.62,184.51,3.04]
[1755703986862,364.08,184.64,184.51,3.04]
[1755703987458,364.08,184.64,184.57,5.4176]
[1755703988558,364.08,184.64,184.55,3.04]
[1755703988854,75.70830457,184.67,184.55,3.04]
[1755703989655,75.70830457,184.67,184.62,3.04]
[1755703989850,75.70830457,184.67,184.52,9.39234159]
[1755703989851,75.70830457,184.67,184.63,3.04]
[1755703990063,75.70830457,184.67,184.61,5.4163]
[1755703990264,75.70830457,184.67,184.59,3.04]
[1755703990560,75.70830457,184.67,184.62,5.4159]
[1755703990753,75.70830457,184.67,184.59,3.04]
[1755703990961,77.79830457,184.67,184.52,3.04]
[1755703991264,2.09,184.66,184.57,3.04]
[1755703992764,2.09,184.66,184.5,3.04]
[1755703992974,2.09,184.63,184.54,5.4183]
[1755703993564,2.09,184.63,184.53,8.4587]
[1755703993963,2.09,184.63,184.46,4.4067758]
[1755703994267,2.09,184.59,184.45,3.04]
[1755703994467,2.09,184.55,184.45,3.04]
[1755703994663,2.09,184.55,184.47,5.4204]
[1755703994863,2.09,184.55,184.45,3.04]
[1755703995064,2.09,184.55,184.48,5.42]
[1755703995567,2.09,184.55,184.45,3.04]
[1755703996570,2.09,184.51,184.4,3.04]
[1755703998071,2.09,184.51,184.4,8.4624]
[1755703998874,142.26,184.5,184.4,3.04]
[1755703999065,7.07556579,184.48,184.32,3.04]
[1755703999266,2.09,184.47,184.37,5.4235]
[1755704000069,2.09,184.47,184.38,5.4232]
[1755704000369,2.09,184.47,184.35,3.04]
[1755704002071,2.09,184.47,184.38,5.4232]
[1755704002275,2.09,184.47,184.35,3.04]
[1755704002676,2.09,184.47,184.38,5.4232]
[1755704002878,2.09,184.47,184.35,3.04]
[1755704003080,2.09,184.47,184.35,8.4639]
[1755704003274,2.09,184.43,184.28,3.04]
[1755704004172,2.09,184.43,184.27,4.98556579]
[1755704004373,2.09,184.43,184.28,3.04]
[1755704004777,4.98556579,184.42,184.28,3.04]
[1755704005171,2.09,184.43,184.28,3.04]
[1755704005365,2.09,184.43,184.38,5.4232]
[1755704005568,2.09,184.43,184.34,3.04]
[1755704005769,4.98556579,184.46,184.34,3.04]
[1755704005975,366.37,184.48,184.34,3.04]
[1755704006377,2.11,184.47,184.39,5.4229]
[1755704006575,2.11,184.47,184.34,3.04]
[1755704007274,2.11,184.47,184.38,5.423]
[1755704007570,2.11,184.47,184.34,3.04]
[1755704007767,2.11,184.47,184.39,5.4228]
[1755704007969,2.11,184.47,184.34,3.04]
[1755704008180,4.98556579,184.46,184.38,5.4232]
[1755704008766,2.11,184.41,184.34,5.4243]
[1755704008975,144.35,184.41,184.3,2.96]
[1755704009273,144.35,184.41,184.31,5.4253]
[1755704009474,144.35,184.41,184.3,2.96]
[1755704010872,144.35,184.41,184.32,5.4248]
[1755704011078,2.11,184.4,184.3,2.96]
[1755704011274,4.98556579,184.38,184.3,2.96]
[1755704011475,2.11,184.37,184.25,2.96]
[1755704012479,2.11,184.37,184.27,5.4264]
[1755704012979,2.11,184.37,184.25,2.96]
[1755704013375,142.24,184.36,184.25,2.96]
[1755704013682,142.24,184.36,184.29,5.4258]
[1755704014075,2.11,184.37,184.29,5.4258]
[1755704014380,144.33,184.37,184.29,5.4258]
[1755704014782,144.33,184.37,184.3,5.4256]
[1755704014981,144.33,184.37,184.25,2.96]
[1755704015182,144.33,184.37,184.28,5.426]
[1755704015781,144.33,184.37,184.29,5.4258]
[1755704015981,144.33,184.37,184.25,2.96]
[1755704016179,2.11,184.37,184.25,2.96]
[1755704016372,4.98556579,184.38,184.25,2.96]
[1755704016670,142.22,184.4,184.25,2.96]
[1755704016871,2.11,184.39,184.31,5.4251]
[1755704017071,2.11,184.37,184.25,2.96]
[1755704017480,2.11,184.37,184.28,5.4259]
[1755704017880,2.11,184.37,184.25,2.96]
[1755704018281,4.98556579,184.34,184.25,2.96]
[1755704018478,4.98556579,184.34,184.26,5.4266]
[1755704018679,4.98556579,184.34,184.21,2.96]
[1755704018880,2.1,184.33,184.21,2.96]
[1755704019071,2.1,184.32,184.21,2.96]
[1755704019274,2.1,184.3,184.17,2.96]
[1755704019577,5.4265,184.27,184.22,5.4278]
[1755704019883,149.30556579,184.3,184.19,2.96]
[1755704020082,4.98556579,184.25,184.16,0.94468951]
[1755704020489,4.98556579,184.25,184.15,2.96]
[1755704020780,144.32,184.26,184.15,2.96]
[1755704021875,142.2,184.25,184.15,2.96]
[1755704022280,142.2,184.24,184.15,2.96]
[1755704022684,142.2,184.24,184.18,5.4289]
[1755704022881,2.1,184.23,184.15,2.96]
[1755704023280,2.1,184.22,184.11,2.96]
[1755704024485,2.1,184.22,184.11,8.3909]
[1755704024686,2.1,184.22,184.11,2.96]
[1755704024882,2.1,184.22,184.14,5.4303]
[1755704025088,2.1,184.22,184.11,2.96]
[1755704025390,144.3,184.22,184.11,2.96]
[1755704025590,144.3,184.22,184.14,5.4301]
[1755704025784,2.1,184.26,184.11,2.96]
[1755704025988,144.3,184.26,184.11,2.96]
[1755704026289,2.1,184.25,184.11,2.96]
[1755704026487,4.98556579,184.24,184.15,5.4298]
[1755704026687,4.98556579,184.24,184.11,2.96]
[1755704026994,147.20556579,184.24,184.11,2.96]
[1755704027290,4.98556579,184.24,184.14,2.96]
[1755704027885,2.1,184.23,184.14,2.96]
[1755704028086,2.1,184.23,184.13,5.4306]
[1755704028292,2.1,184.23,184.09,3.90499735]
[1755704028691,144.3,184.23,184.1,2.96]
[1755704029392,144.3,184.23,184.12,5.4309]
[1755704029592,385.78556579,184.35,184.13,2.96]
[1755704029593,2.1,184.26,184.13,2.96]
[1755704030991,2.1,184.26,184.16,5.4297]
[1755704031288,4.98556579,184.24,184.13,2.96]
[1755704031489,2.1,184.23,184.13,2.96]
[1755704032894,144.3,184.23,184.13,2.96]
[1755704033588,2.1,184.23,184.13,2.96]
[1755704034997,2.1,184.23,184.1,2.96]
[1755704035988,2.1,184.19,184.1,2.96]
[1755704037196,2.1,184.19,184.06,0.94510001]
[1755704037197,4.98556579,184.16,184.06,0.94510001]
[1755704037499,2.1,184.15,184.03,2.96]
[1755704037690,2.1,184.15,184.05,5.4329]
[1755704037890,2.1,184.15,184.03,0.94539527]
[1755704038095,2.1,184.15,184.04,2.96]
[1755704040194,142.16,184.17,184.0,0.94557509]
[1755704040195,4.98556579,184.08,184.0,0.94557509]
[1755704040404,7.08556579,184.08,183.97,2.96]
[1755704040591,2.1,184.07,183.94,2.96]
[1755704041206,2.1,184.03,183.94,2.96]
[1755704041793,7.08556579,184.03,183.94,2.96]
[1755704042391,7.08556579,184.03,183.89,0.94603779]
[1755704042392,7.08556579,184.03,183.9,2.96]
[1755704043002,4.98556579,184.02,183.91,5.437]
[1755704043202,4.98556579,184.02,183.9,2.96]
[1755704043396,2.1,184.03,183.93,5.4365]
[1755704043699,4.98556579,184.07,183.94,2.96]
[1755704043902,142.14,184.07,183.94,2.96]
[1755704044102,2.1,184.03,183.94,2.96]
[1755704044306,4.98556579,184.04,183.94,2.96]
[1755704045299,147.16556579,184.04,183.94,2.96]
[1755704045801,147.14556579,184.04,183.94,2.96]
[1755704046600,144.26,184.05,183.96,5.4354]
[1755704046805,144.26,184.05,183.94,2.96]
[1755704047608,4.98556579,184.07,183.98,5.435]
[1755704047609,147.16556579,184.07,183.98,5.435]
[1755704047811,4.98556579,184.07,183.99,2.96]
[1755704048507,445.20755339,184.1,183.99,2.96]
[1755704048708,7.08556579,184.19,184.0,4.98556579]
[1755704049014,149.24556579,184.19,184.01,2.96]
[1755704049209,4.98556579,184.15,184.01,2.96]
[1755704049408,7.08556579,184.1,183.89,2.96]
[1755704049602,7.08556579,184.1,183.9,2.96]
[1755704049903,7.08556579,184.1,184.02,5.4337]
[1755704050107,7.08556579,184.1,184.01,2.96]
[1755704050311,4.98556579,184.06,183.97,2.96]
[1755704050514,4.98556579,184.02,183.89,2.96]
[1755704051613,4.98556579,184.02,183.96,5.4354]
[1755704052014,365.16,184.1,183.95,2.96]
[1755704052314,4.98556579,184.08,183.95,2.96]
[1755704052515,144.26,184.09,183.95,2.96]
[1755704052813,2.1,184.15,183.96,2.96]
[1755704053314,147.12556579,184.17,184.07,2.96]
[1755704053511,4.98556579,184.17,184.07,2.96]
[1755704054116,4.98556579,184.13,184.01,2.96]
[1755704054511,2.1,184.12,184.01,2.96]
[1755704054811,2.1,184.12,184.05,5.4329]
[1755704055013,2.1,184.12,184.01,2.96]
[1755704055210,142.14,184.16,184.01,2.96]
[1755704055812,4.98556579,184.17,184.08,5.4318]
[1755704056013,147.12556579,184.17,184.08,5.4318]
[1755704056217,147.12556579,184.17,184.05,2.96]